bitfinex-derivatives/quotes_ETHF0:USTF0_20260104
["timestamp","ask_amount","ask_price","bid_price","bid_amount"]
[1767485461871,0.00275645,3153.3,3151.9,0.1774149]
[1767485462477,0.00275645,3153.3,3152.1,0.1774149]
[1767485462875,0.00275645,3153.3,3152.3,0.1774149]
[1767485463075,0.00275645,3153.3,3152.3,0.00351781]
[1767485463482,6.00275645,3153.3,3151.3,0.00476017]
[1767485463678,0.00275645,3153.3,3151.3,0.00476017]
[1767485463877,0.15865,3152.9,3151.3,0.00476017]
[1767485464074,4.407,3152.8,3151.3,0.00476017]
[1767485464277,13.74966,3152.8,3151.3,0.00476017]
[1767485464471,13.76758984,3152.8,3151.3,0.00753521]
[1767485464686,0.15867,3152.5,3150.5,0.1774149]
[1767485465777,0.15867,3152.5,3151.2,0.00476017]
[1767485465978,0.00476017,3151.8,3151.2,0.00476017]
[1767485466186,4.41,3151.9,3150.5,0.00393726]
[1767485466484,4.41,3151.8,3150.5,0.00393726]
[1767485467287,4.41,3152.4,3150.9,0.1774149]
[1767485467687,0.92395875,3152.3,3150.9,0.1774149]
[1767485467882,2.26617638,3152.9,3150.9,0.1774149]
[1767485467883,2.26617638,3153.4,3150.9,0.1774149]
[1767485468087,5.33484752,3152.9,3150.9,0.1774149]
[1767485468390,0.92384752,3152.8,3150.9,0.1774149]
[1767485469175,5.33584752,3152.8,3151.1,0.1774149]
[1767485469381,4.412,3152.9,3151.1,0.1774149]
[1767485469579,0.9242248,3152.8,3151.1,0.1774149]
[1767485469788,0.9242248,3152.7,3151.1,0.1774149]
[1767485469987,4.412,3152.9,3151.1,0.1774149]
[1767485470189,0.92424473,3152.8,3151.1,0.1774149]
[1767485470389,0.92424473,3152.7,3151.1,0.1774149]
[1767485470580,4.412,3152.9,3151.1,0.1774149]
[1767485470581,0.92434754,3152.6,3151.1,0.1774149]
[1767485470780,0.92437783,3152.5,3150.8,0.00476017]
[1767485471088,0.15866,3152.8,3150.8,0.18217507]
[1767485471286,4.413,3152.7,3151.0,0.1774149]
[1767485471487,0.00275645,3153.3,3151.0,0.1774149]
[1767485471686,8.51132879,3153.2,3151.0,0.1774149]
[1767485471878,0.92432879,3153.1,3151.0,0.1774149]
[1767485472084,4.413,3153.0,3151.2,0.1774149]
[1767485473088,0.00275645,3153.3,3151.4,0.1774149]
[1767485473394,5.33836916,3153.2,3151.4,0.1774149]
[1767485473588,0.92536916,3153.1,3151.4,0.1774149]
[1767485474490,5.33836916,3153.1,3151.4,0.1774149]
[1767485474686,0.92536916,3153.0,3151.4,0.1774149]
[1767485475389,0.92536916,3153.0,3150.8,0.00476017]
[1767485475390,7.597,3152.9,3150.8,0.18217507]
[1767485475590,4.10936916,3152.8,3150.8,0.18217507]
[1767485475789,0.15867,3152.6,3150.8,0.00476017]
[1767485475991,0.92536916,3152.5,3150.8,0.00476017]
[1767485476214,3.51925984,3152.6,3150.8,0.00476017]
[1767485476415,0.17658984,3152.5,3150.8,0.00476017]
[1767485476608,0.17658984,3152.5,3150.5,0.00393726]
[1767485476810,0.17658984,3152.2,3150.5,0.00393726]
[1767485477108,4.413,3152.9,3150.5,0.00393726]
[1767485477109,3.36058984,3152.0,3150.5,0.00393726]
[1767485477308,10.774,3151.9,3150.5,0.00393726]
[1767485477609,10.9327,3151.9,3150.5,0.00393726]
[1767485477800,0.00476017,3151.5,3149.0,4.0757019]
[1767485478006,3.52408001,3151.5,3149.1,0.1774149]
[1767485478210,0.17658984,3151.4,3149.1,4.35252595]
[1767485478411,0.33531984,3151.4,3149.1,0.1774149]
[1767485478814,0.33531984,3151.4,3149.9,0.00476017]
[1767485479018,3.51931984,3151.4,3149.9,0.00476017]
[1767485479913,3.184,3151.2,3149.9,0.00476017]
[1767485480115,4.418,3151.1,3149.9,0.00476017]
[1767485480314,4.418,3151.1,3149.1,0.18085366]
[1767485481311,0.00476017,3151.5,3149.3,0.1774149]
[1767485481517,3.839,3151.4,3149.8,0.00476017]
[1767485482321,0.00476017,3151.5,3149.8,0.00476017]
[1767485482523,4.419,3151.4,3149.8,0.00476017]
[1767485482819,4.419,3151.3,3149.8,0.00476017]
[1767485484507,0.00476017,3151.5,3149.8,0.00476017]
[1767485484712,0.00476017,3151.5,3150.0,0.1774149]
[1767485485121,0.00476017,3151.5,3150.2,0.1774149]
[1767485485722,0.00476017,3151.5,3150.4,0.1774149]
[1767485486019,3.965,3152.1,3150.5,4.13453164]
[1767485486524,3.965,3152.1,3149.8,0.18217507]
[1767485486715,0.1587,3152.0,3149.8,0.18217507]
[1767485486916,0.00476017,3151.2,3150.0,4.13453164]
[1767485487216,4.419,3151.1,3149.8,0.00476017]
[1767485487419,4.329,3151.0,3149.8,0.00476017]
[1767485487619,4.33142682,3151.0,3149.8,0.00476017]
[1767485488222,0.00476017,3150.7,3149.8,0.00476017]
[1767485489612,9.184,3150.6,3149.1,0.00343876]
[1767485489818,3.184,3150.6,3149.1,0.00343876]
[1767485490718,3.184,3150.5,3149.1,0.00343876]
[1767485491026,3.184,3150.5,3149.5,0.00476017]
[1767485491824,10.779,3150.4,3149.5,0.00476017]
[1767485492024,10.779,3150.4,3149.1,0.00343876]
[1767485492225,16.779,3150.4,3149.1,0.00343876]
[1767485492415,16.96292153,3150.4,3148.1,0.92348567]
[1767485492616,7.77892153,3150.4,3148.1,0.92348567]
[1767485492820,0.18392153,3150.3,3148.1,0.92348567]
[1767485493421,0.18392153,3150.3,3148.1,0.92628552]
[1767485494330,0.18392153,3150.3,3148.2,0.18687567]
[1767485495324,0.18392153,3150.3,3148.9,0.00476017]
[1767485495623,7.6,3150.2,3148.9,0.00476017]
[1767485496231,6.0,3150.1,3148.2,0.18687567]
[1767485496429,7.94271153,3150.2,3148.2,0.18687567]
[1767485497030,0.18392153,3150.1,3148.1,0.00279985]
[1767485497329,0.18392153,3150.1,3148.8,0.00476017]
[1767485497730,0.15881,3149.8,3148.1,0.00279985]
[1767485498823,0.15881,3149.8,3148.6,0.00317341]
[1767485499222,3.176,3150.3,3148.6,6.19004908]
[1767485499449,4.43,3150.2,3148.7,0.18687567]
[1767485501025,4.43,3150.2,3148.6,0.00317341]
[1767485502733,3.184,3150.1,3148.6,0.00317341]
[1767485503119,0.15881,3149.8,3148.6,0.00317341]
[1767485503837,3.184,3149.6,3148.1,0.00279985]
[1767485504037,3.184,3149.4,3148.1,0.00279985]
[1767485504728,0.00476017,3149.1,3148.2,0.18687567]
[1767485504921,4.432,3149.3,3148.2,0.18687567]
[1767485505831,0.15879,3150.1,3148.4,0.18687567]
[1767485506026,4.432,3150.0,3148.4,0.19163584]
[1767485506535,4.432,3150.0,3148.5,0.18687567]
[1767485506728,4.433,3149.9,3148.5,0.18687567]
[1767485506928,0.00476017,3149.5,3148.5,0.18687567]
[1767485510327,0.00476017,3149.5,3148.5,6.18687567]
[1767485510523,0.00476017,3149.5,3148.5,0.18687567]
[1767485510732,0.00476017,3149.5,3148.4,0.00476017]
[1767485511230,3.184,3149.4,3148.4,0.00476017]
[1767485513148,3.184,3149.3,3148.1,0.00279985]
[1767485513340,7.62,3149.2,3148.1,0.00279985]
[1767485514242,7.62,3149.2,3148.3,0.00476017]
[1767485514442,13.62,3149.2,3148.1,0.00279985]
[1767485515643,13.62,3149.2,3147.5,0.18687567]
[1767485515940,7.62,3149.2,3147.5,0.18687567]
[1767485516538,7.62,3149.2,3147.5,0.18912514]
[1767485517743,0.15883,3149.4,3147.5,0.18912514]
[1767485517942,3.184,3149.4,3147.5,0.18912514]
[1767485518349,4.449,3149.3,3147.5,0.18912514]
[1767485519050,0.00476017,3148.7,3148.1,0.00476017]
[1767485519350,0.00412872,3148.7,3148.1,0.00476017]
[1767485521148,3.184,3150.2,3148.3,0.17692062]
[1767485521352,4.449,3150.1,3148.3,0.17692062]
[1767485522254,0.00476017,3149.5,3148.3,0.17692062]
[1767485522454,4.45212022,3150.1,3148.5,0.17692062]
[1767485522646,0.00312022,3150.1,3148.7,0.15886]
[1767485522846,0.15874,3151.2,3148.7,0.15886]
[1767485522847,4.451,3151.0,3148.7,4.057147]
[1767485523152,4.451,3151.0,3148.8,4.14213851]
[1767485523354,4.451,3151.0,3148.8,10.14213851]
[1767485523554,0.17939576,3151.8,3149.0,0.15885]
[1767485523853,11.73944642,3151.7,3149.1,4.07239357]
[1767485524049,0.92744642,3151.6,3149.1,4.07239357]
[1767485524248,10.812,3151.7,3149.1,4.07239357]
[1767485524552,0.16232699,3151.8,3149.4,0.15883]
[1767485524750,4.451,3151.7,3150.2,0.17692062]
[1767485524964,4.451,3151.7,3150.2,0.18038668]
[1767485525448,4.451,3151.7,3150.2,6.00346606]
[1767485525656,4.451,3151.7,3150.3,0.17692062]
[1767485525850,0.00476017,3151.3,3150.3,0.17692062]
[1767485528058,3.939738,3151.7,3150.3,0.17692062]
[1767485528858,3.939738,3151.7,3150.3,0.17592062]
[1767485530360,0.00317342,3151.3,3150.3,0.17592062]
[1767485530954,3.176,3153.0,3150.5,0.33569062]
[1767485531150,4.448,3152.5,3150.6,0.17692062]
[1767485531460,4.448,3152.5,3150.7,0.17692062]
[1767485531967,4.448,3152.5,3150.2,0.18038668]
[1767485531968,4.45058867,3152.5,3150.2,0.18038668]
[1767485532255,4.45058867,3152.5,3150.4,0.17692062]
[1767485533247,4.447,3152.4,3150.6,0.17692062]
[1767485533452,0.00258867,3152.5,3150.6,0.17692062]
[1767485533650,0.00258867,3152.5,3150.8,0.17692062]
[1767485537056,0.00258867,3152.5,3151.1,0.17692062]
[1767485537261,0.00258867,3152.5,3151.1,0.33566062]
[1767485537459,0.00258867,3152.5,3151.3,0.17692062]
[1767485537855,0.00258867,3152.5,3151.5,0.17692062]
[1767485538065,3.175,3154.2,3151.8,0.17692062]
[1767485538254,4.445,3153.9,3151.8,0.17692062]
[1767485538454,4.445,3153.9,3152.0,0.17692062]
[1767485538954,0.18278424,3153.8,3151.7,0.00476017]
[1767485539262,4.44817669,3153.9,3151.9,0.17692062]
[1767485539465,0.00317669,3153.9,3151.9,0.17692062]
[1767485539759,1.45917669,3153.9,3151.9,0.17692062]
[1767485540263,6.34139424,3153.8,3151.7,0.00476017]
[1767485540462,0.18278424,3153.7,3151.7,0.00476017]
[1767485541859,4.446,3153.6,3151.7,0.18168079]
[1767485542054,0.18278424,3153.4,3151.7,0.00476017]
[1767485542250,0.18278424,3153.3,3151.7,0.00476017]
[1767485542564,3.36678424,3153.3,3151.7,0.00476017]
[1767485542759,0.18278424,3152.9,3150.6,0.17692062]
[1767485543566,7.621,3152.8,3150.6,0.17692062]
[1767485543763,10.805,3152.8,3150.6,0.17692062]
[1767485543961,0.00476017,3152.0,3151.4,0.00476017]
[1767485544157,3.174,3153.4,3151.4,0.18168079]
[1767485544357,3.174,3153.4,3151.6,0.17692062]
[1767485545859,0.00317669,3153.9,3151.6,0.17692062]
[1767485546059,0.00317669,3153.9,3151.8,0.17692062]
[1767485546261,1.319,3153.8,3151.8,0.17692062]
[1767485546461,1.319,3153.8,3151.4,0.00476017]
[1767485546462,1.319,3153.8,3152.0,0.17692062]
[1767485547254,3.184,3153.7,3152.0,0.17692062]
[1767485547468,0.18278424,3153.6,3151.4,0.18168079]
[1767485547660,0.15862,3153.5,3151.4,0.18168079]
[1767485547859,3.184,3153.4,3151.4,0.18168079]
[1767485548063,4.446,3153.3,3151.4,0.18168079]
[1767485548253,3.184,3153.2,3151.4,0.18168079]
[1767485548455,0.00317669,3153.9,3151.4,0.18168079]
[1767485548660,7.62,3153.8,3151.6,0.17692062]
[1767485549061,7.62,3153.8,3151.8,0.17692062]
[1767485549566,3.184,3153.7,3151.8,0.17692062]
[1767485549781,0.18278424,3153.6,3151.4,0.00476017]
[1767485551371,3.5351161,3153.4,3151.4,0.00476017]
[1767485551863,0.19303508,3153.1,3151.4,0.00476017]
[1767485552056,0.19303508,3152.8,3151.4,0.00476017]
[1767485552261,0.00476017,3152.4,3150.7,0.19539046]
[1767485552474,3.18407464,3152.4,3150.7,0.19539046]
[1767485552971,7.464e-05,3152.4,3150.7,0.19539046]
[1767485553158,4.447,3152.3,3150.7,0.19539046]
[1767485553562,4.447,3152.3,3151.2,0.00476017]
[1767485553866,7.464e-05,3152.4,3151.2,0.00476017]
[1767485554071,7.621,3152.9,3151.3,0.19539046]
[1767485554466,0.15863,3153.4,3151.3,0.19539046]
[1767485554672,4.447,3153.0,3151.3,0.19539046]
[1767485555876,0.92685704,3152.9,3151.2,0.00476017]
[1767485556061,7.631,3153.0,3151.2,0.00476017]
[1767485556266,0.92710467,3152.9,3151.2,0.00476017]
[1767485556469,0.92710467,3152.8,3151.2,0.00476017]
[1767485556771,7.631,3153.0,3151.2,0.00476017]
[1767485556965,0.92710553,3152.9,3151.2,0.00476017]
[1767485557166,0.92710553,3152.8,3151.2,0.00476017]
[1767485557367,7.631,3153.0,3151.2,0.00476017]
[1767485557566,4.29261934,3152.9,3151.2,0.00476017]
[1767485557771,3.184,3152.7,3151.2,0.00476017]
[1767485558771,4.45,3152.6,3151.2,0.00476017]
[1767485558974,4.45,3152.6,3151.2,0.20015063]
[1767485559477,3.184,3152.7,3151.2,0.20015063]
[1767485559774,3.184,3152.6,3151.2,0.20015063]
[1767485559960,4.45,3152.5,3151.2,0.20015063]
[1767485562484,3.93419718,3152.5,3151.2,0.00476017]
[1767485562771,7.11819718,3152.5,3151.2,0.00476017]
[1767485564771,0.17315794,3152.2,3150.2,0.00346606]
[1767485564971,4.11289747,3152.1,3150.2,0.00346606]
[1767485565176,3.184,3151.9,3150.2,0.00346606]
[1767485565372,3.184,3151.7,3150.2,0.19885652]
[1767485565578,4.454,3151.6,3150.6,0.00476017]
[1767485565769,4.45690583,3151.6,3150.6,0.00476017]
[1767485565970,0.00476017,3151.4,3150.2,0.19885652]
[1767485566965,0.00476017,3151.4,3150.5,0.00476017]
[1767485570978,3.184,3151.3,3149.3,0.19539046]
[1767485571279,4.457,3151.2,3149.3,4.32056798]
[1767485571478,4.457,3151.2,3149.4,0.19539046]
[1767485572082,4.457,3151.2,3150.0,0.00476017]
[1767485573283,13.641,3151.2,3149.4,0.19805153]
[1767485573473,7.641,3151.2,3149.4,0.00266107]
[1767485573675,7.96526162,3151.2,3149.4,0.00266107]
[1767485573875,3.34952162,3150.9,3149.4,0.00266107]
[1767485574078,3.184,3150.7,3149.4,0.00266107]
[1767485574277,3.184,3150.5,3148.9,0.19539046]
[1767485574487,3.184,3150.5,3149.4,0.00476017]
[1767485575182,3.184,3150.5,3149.4,0.0085902]
[1767485575387,0.16057868,3150.2,3147.9,0.19539046]
[1767485575586,3.184,3150.0,3147.9,0.19539046]
[1767485575771,3.184,3149.8,3147.9,0.19539046]
[1767485575971,3.184,3149.8,3147.2,0.19539046]
[1767485575972,3.34467506,3149.8,3147.2,0.19539046]
[1767485576387,0.00476017,3148.8,3148.2,0.00476017]
[1767485576590,0.00706658,3148.8,3147.3,0.19539046]
[1767485577091,0.00706658,3148.8,3147.5,0.19539046]
[1767485577787,0.00706658,3148.8,3147.8,0.19856388]
[1767485578381,0.00706658,3148.8,3147.8,0.00317342]
[1767485578692,4.47006658,3148.8,3147.8,0.19856388]
[1767485579589,0.00706658,3148.8,3147.9,0.19539046]
[1767485580181,0.15877,3150.6,3148.1,0.1832448]
[1767485580394,3.175,3150.5,3148.1,0.1832448]
[1767485580587,4.86,3150.5,3148.3,0.1832448]
[1767485580991,0.15877,3150.6,3148.3,0.1832448]
[1767485581287,4.463,3150.5,3148.5,0.1832448]
[1767485581591,0.00476017,3149.8,3148.5,0.1832448]
[1767485581988,4.463,3149.7,3147.9,0.1832448]
[1767485582185,0.00476017,3149.8,3147.9,0.1832448]
[1767485582389,4.463,3149.7,3148.1,0.1832448]
[1767485583994,4.463,3149.7,3147.8,0.00317342]
[1767485585297,7.647,3149.7,3147.8,0.00317342]
[1767485585496,0.00476017,3149.8,3147.8,0.18641822]
[1767485585789,7.647,3149.7,3147.8,0.18641822]
[1767485585995,7.80680241,3149.7,3147.8,0.00317342]
[1767485586395,3.184,3149.5,3147.8,0.00317342]
[1767485587493,3.184,3149.6,3147.8,0.00317342]
[1767485587903,3.33918851,3149.6,3147.8,0.00317342]
[1767485588197,0.15518851,3149.3,3147.2,0.18633639]
[1767485588590,9.184,3149.2,3147.2,0.18633639]
[1767485588790,3.184,3149.0,3147.2,0.18633639]
[1767485588991,3.184,3148.8,3147.2,0.18633639]
[1767485589287,6.0,3149.2,3147.2,0.18633639]
[1767485589288,4.466,3148.7,3147.7,0.18800497]
[1767485589490,4.467,3148.7,3147.7,0.18800497]
[1767485589696,4.467,3148.7,3147.7,0.00476017]
[1767485590696,10.467,3148.7,3147.7,0.00476017]
[1767485590883,13.651,3148.7,3147.7,0.00476017]
[1767485592693,0.15887,3148.6,3147.2,0.00309159]
[1767485593693,0.00476017,3148.2,3147.2,0.00309159]
[1767485593893,0.00844463,3148.2,3147.2,0.00309159]
[1767485594495,0.00844463,3148.2,3147.2,0.18633639]
[1767485594891,4.478,3148.1,3147.2,0.18633639]
[1767485595707,4.478,3148.1,3147.2,0.00309159]
[1767485596095,0.00844463,3148.2,3147.2,0.00309159]
[1767485596409,4.478,3148.1,3147.2,0.00309159]
[1767485597510,4.478,3148.1,3146.7,0.1832448]
[1767485597702,13.8209,3148.1,3146.2,0.1832448]
[1767485597904,7.8209,3148.1,3146.2,0.1832448]
[1767485598096,0.15891,3147.9,3145.8,4.21254954]
[1767485598294,0.15891,3147.9,3145.7,0.1832448]
[1767485598500,0.15891,3147.7,3145.7,0.18604891]
[1767485599398,3.184,3147.5,3145.7,0.18604891]
[1767485599606,3.184,3147.3,3145.7,0.18604891]
[1767485599799,3.184,3147.1,3145.7,0.18604891]
[1767485600910,3.184,3147.9,3145.9,0.1832448]
[1767485601096,3.184,3147.7,3145.9,0.1832448]
[1767485602009,3.184,3147.9,3146.1,0.1832448]
[1767485602206,4.481,3147.8,3146.2,0.1832448]
[1767485603111,7.665,3147.8,3146.2,0.1832448]
[1767485603708,4.481,3147.8,3146.2,0.1832448]
[1767485603907,4.482,3148.0,3146.4,0.1832448]
[1767485604513,4.482,3148.0,3146.6,0.1832448]
[1767485607006,4.482,3148.0,3146.3,4.09479222]
[1767485607213,7.666,3148.0,3146.1,0.1832448]
[1767485607606,3.184,3147.8,3145.7,0.00280411]
[1767485607813,3.184,3147.6,3145.7,0.18604891]
[1767485608001,3.184,3147.6,3145.9,0.1832448]
[1767485608203,0.00844463,3148.2,3146.3,0.1832448]
[1767485608409,0.00844463,3148.2,3146.6,0.1832448]
[1767485608610,0.00844463,3148.2,3146.8,0.1832448]
[1767485609400,0.15719508,3148.0,3146.0,0.1832448]
[1767485609606,3.34291,3147.8,3145.8,0.1832448]
[1767485609913,3.184,3147.6,3145.8,0.1832448]
[1767485610113,3.184,3147.4,3145.8,0.1832448]
[1767485610508,3.178,3147.6,3146.0,0.19426243]
[1767485610509,4.483,3147.3,3146.0,0.19426243]
[1767485611217,4.483,3147.9,3146.2,0.19426243]
[1767485611509,4.483,3147.9,3146.6,0.18154571]
[1767485612103,3.19244463,3148.2,3146.6,0.18154571]
[1767485612308,3.19244463,3148.2,3146.7,0.18154571]
[1767485612817,0.00844463,3148.2,3146.8,0.18154571]
[1767485613810,0.93153918,3148.1,3146.1,0.18154571]
[1767485614109,0.00844463,3148.2,3146.2,4.37052757]
[1767485614311,0.93156023,3148.1,3146.3,0.18154571]
[1767485614510,0.93156023,3148.0,3146.3,0.18154571]
[1767485614709,0.00844463,3148.2,3146.3,0.18154571]
[1767485614909,0.93190725,3148.1,3146.3,0.18154571]
[1767485615124,0.00844463,3148.2,3146.3,0.18154571]
[1767485615125,0.93190725,3148.0,3146.3,0.18154571]
[1767485615311,0.00844463,3148.2,3146.3,0.18154571]
[1767485615512,0.93226689,3148.1,3146.3,0.18154571]
[1767485615721,0.93226689,3148.0,3146.3,0.18154571]
[1767485615922,0.00844463,3148.2,3146.3,0.18154571]
[1767485616122,0.93227411,3148.1,3146.3,0.18154571]
[1767485616317,0.93227411,3148.0,3146.3,0.18154571]
[1767485616516,0.00844463,3148.2,3146.5,0.18154571]
[1767485616726,0.00844463,3148.2,3147.0,0.18154571]
[1767485618227,0.00024342,3148.2,3147.0,0.18154571]
[1767485619226,0.00476017,3147.9,3147.0,0.18154571]
[1767485619526,0.0001382,3147.9,3147.1,0.18630588]
[1767485621428,0.0001382,3147.9,3147.1,0.00476017]
[1767485621931,6.0001382,3147.9,3146.2,0.34053571]
[1767485622235,0.0001382,3147.9,3146.3,0.18154571]
[1767485623238,0.0001382,3147.9,3146.8,0.00462197]
[1767485623949,6.0001382,3147.9,3146.8,0.00462197]
[1767485624140,6.0001382,3147.9,3146.3,0.18154571]
[1767485624335,3.1841382,3147.9,3145.8,0.18154571]
[1767485624640,3.184,3147.7,3145.8,0.18154571]
[1767485624845,7.667,3147.6,3145.8,0.18154571]
[1767485625951,13.667,3147.6,3145.8,0.18154571]
[1767485627246,0.13494418,3147.5,3145.7,0.00280411]
[1767485628256,3.184,3147.3,3145.7,0.00280411]
[1767485629351,9.184,3147.2,3145.7,0.00280411]
[1767485629543,3.184,3147.2,3145.7,0.00280411]
[1767485630145,0.29386418,3147.5,3145.7,0.00280411]
[1767485630342,9.184,3147.4,3145.7,0.00280411]
[1767485630749,9.31262854,3147.4,3145.7,0.00280411]
[1767485630946,0.12862854,3147.3,3145.7,0.00280411]
[1767485631146,9.184,3147.4,3145.7,0.00280411]
[1767485631344,3.34292,3147.5,3145.7,0.00280411]
[1767485631542,9.34292,3147.5,3145.7,0.18434982]
[1767485633942,3.34292,3147.5,3145.7,0.18434982]
[1767485635838,0.15913342,3148.2,3145.8,0.18154571]
[1767485636055,3.527,3147.8,3145.9,0.18154571]
[1767485637651,3.01031758,3147.8,3146.1,0.18154571]
[1767485638342,3.01031758,3147.8,3146.3,0.18154571]
[1767485641061,12.19231758,3147.8,3145.8,0.19906376]
[1767485641277,0.15893,3147.3,3145.7,0.00280411]
[1767485641454,7.689,3147.2,3145.7,0.00280411]
[1767485642066,7.689,3147.2,3145.7,0.20186787]
[1767485642256,4.507,3147.2,3145.7,0.20186787]
[1767485642760,0.30289731,3148.0,3145.7,0.20186787]
[1767485642956,0.14172385,3147.7,3145.7,0.20186787]
[1767485643365,3.32372385,3147.7,3145.7,0.20186787]
[1767485643559,0.14177904,3147.6,3145.7,0.00280411]
[1767485644466,0.30069904,3147.6,3145.7,0.00280411]
[1767485644956,0.2982666,3147.5,3145.7,0.00280411]
[1767485646269,0.15893,3147.4,3145.7,0.00280411]
[1767485647571,0.15893,3147.4,3145.7,0.20186787]
[1767485648070,3.182,3147.2,3145.7,0.20186787]
[1767485649470,4.519,3147.3,3145.7,0.20186787]
[1767485649664,4.519,3147.2,3145.7,0.20186787]
[1767485649970,4.519,3147.1,3145.7,0.20186787]
[1767485650668,4.0022844,3147.1,3145.9,0.19906376]
[1767485651074,4.0022844,3147.1,3145.7,0.00280411]
[1767485651565,7.1842844,3147.1,3145.7,0.00280411]
[1767485653675,4.52,3147.0,3145.7,0.00280411]
[1767485654178,4.52,3147.0,3145.7,0.20186787]
[1767485655667,4.52,3147.0,3145.7,0.00280411]
[1767485657578,7.702,3147.0,3145.7,0.00280411]
[1767485658976,0.0001382,3147.9,3145.9,0.19906376]
[1767485659173,0.0001382,3147.9,3146.2,0.19906376]
[1767485659369,2.306,3147.8,3146.2,0.19906376]
[1767485659672,2.306,3147.8,3146.4,0.19906376]
[1767485660280,2.306,3147.8,3146.6,0.19906376]
[1767485660579,1.78943163,3147.8,3146.6,0.19906376]
[1767485664369,0.0001382,3147.9,3146.6,0.19906376]
[1767485664677,0.0001382,3147.9,3146.7,0.19906376]
[1767485664678,2.9581382,3147.9,3146.7,0.19906376]
[1767485665781,2.9581382,3147.9,3145.8,0.19906376]
[1767485665977,2.9581382,3147.9,3145.9,0.159]
[1767485666181,2.9581382,3147.9,3146.0,0.19906376]
[1767485666480,2.9581382,3147.9,3146.1,0.19906376]
[1767485666873,2.9581382,3147.9,3146.3,0.19906376]
[1767485667776,0.0001382,3147.9,3146.5,0.19906376]
[1767485667981,1.58,3147.8,3146.5,0.19906376]
[1767485668883,0.0001382,3147.9,3146.7,0.19906376]
[1767485669278,4.518,3147.8,3146.9,0.19906376]
[1767485670385,0.0001382,3147.9,3147.0,0.18730941]
[1767485670686,3.179,3148.6,3147.0,0.18730941]
[1767485670983,0.30228624,3149.2,3147.0,0.18730941]
[1767485670984,4.518,3148.5,3147.0,0.18730941]
[1767485671390,0.15884,3149.2,3147.2,0.18730941]
[1767485671583,0.00476017,3148.5,3147.3,0.34623941]
[1767485671778,0.00476017,3148.5,3147.4,0.18814826]
[1767485672081,0.00476017,3148.5,3147.6,0.18814826]
[1767485672480,1.2,3149.1,3147.8,0.18814826]
[1767485673674,0.00476017,3148.8,3148.1,0.00476017]
[1767485673875,0.00476017,3148.8,3148.1,0.00877441]
[1767485674874,6.00476017,3148.8,3147.3,0.18814826]
[1767485675078,0.00476017,3148.8,3147.3,0.18814826]
[1767485675781,0.00476017,3148.8,3147.3,0.19053385]
[1767485680991,3.182,3148.7,3147.3,0.00238559]
[1767485681585,0.00476017,3148.8,3147.3,0.19053385]
[1767485681887,0.0003255,3148.8,3147.5,0.18814826]
[1767485682285,0.0003255,3148.8,3147.7,0.18814826]
[1767485683091,0.0003255,3148.8,3148.0,0.18814826]
[1767485684789,0.0003255,3148.8,3148.1,6.0]
[1767485684990,0.0003255,3148.8,3148.2,0.18814826]
[1767485685388,4.524,3149.0,3148.2,0.18814826]
[1767485685790,4.523,3149.0,3148.2,0.18814826]
[1767485686384,0.00372082,3149.2,3148.2,0.18814826]
[1767485686591,2.723,3149.1,3148.2,0.18814826]
[1767485686889,4.523,3149.1,3148.2,0.18814826]
[1767485687696,0.00476017,3149.0,3148.2,0.18814826]
[1767485688202,4.52776017,3149.0,3148.2,0.18814826]
[1767485691994,4.01138059,3149.0,3148.2,0.18814826]
[1767485693001,0.00476017,3148.9,3148.2,0.18814826]
[1767485695794,0.00476017,3148.9,3147.9,0.00457286]
[1767485699106,4.524,3148.8,3147.9,0.00457286]
[1767485700509,4.524,3148.8,3147.2,4.09365269]
[1767485700711,0.00476017,3148.9,3147.3,0.19840724]
[1767485701006,0.00038823,3148.9,3148.3,0.15888]
[1767485701201,3.32,3149.6,3148.4,0.19840724]
[1767485701402,0.15876,3150.7,3148.6,0.15887]
[1767485701707,0.15876,3150.7,3148.7,0.19840724]
[1767485701915,0.15876,3150.7,3148.8,0.19840724]
[1767485702101,7.55621043,3150.6,3148.8,0.35725724]
[1767485702308,3.177,3151.5,3149.5,0.19840724]
[1767485702501,4.525,3151.4,3150.2,0.00476017]
[1767485702703,0.00476017,3150.8,3150.2,0.20316741]
[1767485703010,3.762,3151.0,3150.2,0.20316741]
[1767485703207,3.762,3151.0,3150.2,0.00476017]
[1767485703914,9.762,3151.0,3149.5,0.00257509]
[1767485704116,3.762,3151.0,3149.5,0.00257509]
[1767485704303,0.16235578,3151.5,3149.5,0.20098233]
[1767485704614,7.028,3151.4,3149.5,0.20098233]
[1767485704912,0.00476017,3150.8,3149.5,0.20098233]
[1767485705308,0.00476017,3150.8,3149.8,0.00476017]
[1767485705709,0.00476017,3150.8,3149.9,0.19840724]
[1767485705904,4.524,3151.2,3149.8,0.00476017]
[1767485706118,4.67259244,3151.2,3149.8,0.00476017]
[1767485706311,0.15873,3151.5,3149.8,0.00476017]
[1767485706507,0.30866915,3152.2,3149.8,0.20316741]
[1767485706705,0.92751104,3152.1,3149.8,0.20316741]
[1767485707017,7.7,3152.0,3149.8,0.20316741]
[1767485707516,0.14997915,3151.9,3149.8,0.20316741]
[1767485707710,0.00476017,3151.2,3149.8,0.20316741]
[1767485707912,4.524,3151.1,3149.8,0.20316741]
[1767485708320,10.524,3151.1,3149.8,0.00476017]
[1767485708615,6.0,3151.1,3149.8,0.00476017]
[1767485708826,7.7,3151.0,3149.8,0.00476017]
[1767485709113,0.15876,3150.7,3149.5,0.00257509]
[1767485709415,0.14533415,3150.9,3147.5,7.12215892]
[1767485709416,0.14275906,3150.1,3147.7,0.19840724]
[1767485709616,4.6688045,3150.0,3147.7,0.19840724]
[1767485710316,0.00476017,3149.2,3148.5,0.00476017]
[1767485710505,4.526,3149.1,3148.5,0.00476017]
[1767485711221,0.00750119,3149.2,3148.5,0.20316741]
[1767485711917,0.14353953,3150.5,3148.6,0.19840724]
[1767485712103,7.702,3150.4,3148.6,0.19840724]
[1767485712308,7.702,3150.3,3148.6,0.19840724]
[1767485712816,0.1453137,3150.2,3148.5,0.00476017]
[1767485713010,0.00476017,3149.8,3148.5,0.00476017]
[1767485713615,0.00476017,3149.8,3148.5,6.20316741]
[1767485713819,4.52740641,3149.8,3148.6,0.19840724]
[1767485715115,0.00040641,3149.8,3148.6,0.19840724]
[1767485715319,0.00040641,3149.8,3148.7,0.17020724]